[Event "Early-Titled-Tuesday-Blitz-October-03-2023"]
[Site "Chess.com"]
[Date "2023.10.03"]
[Round "5"]
[White "guillembaches"]
[Black "Kgutierrez95"]
[Result "0-1"]
[WhiteElo "2495"]
[BlackElo "2215"]
[TimeControl "180+1"]
[EndTime "8:54:48 PDT"]
[Termination "Kgutierrez95 won by checkmate"]

1. Nf3 {[%clk 0:03:00.9]} 1... d5 {[%clk 0:02:55.4]} 2. b3 {[%clk 0:03:00.2]}
2... Nf6 {[%clk 0:02:50.3]} 3. Bb2 {[%clk 0:03:00.1]} 3... Nc6 {[%clk
0:02:50.2]} 4. e3 {[%clk 0:02:58.9]} 4... e6 {[%clk 0:02:43.6]} 5. c4 {[%clk
0:02:54.9]} 5... dxc4 {[%clk 0:02:41.7]} 6. bxc4 {[%clk 0:02:52.8]} 6... Be7
{[%clk 0:02:37.6]} 7. g4 {[%clk 0:02:47.4]} 7... h6 {[%clk 0:02:30.2]} 8. Rg1
{[%clk 0:02:36.7]} 8... h5 {[%clk 0:02:03.2]} 9. g5 {[%clk 0:02:31.5]} 9... Ne4
{[%clk 0:01:56.1]} 10. Qc2 {[%clk 0:02:18]} 10... Nxg5 {[%clk 0:01:46.1]} 11.
Nxg5 {[%clk 0:02:16.3]} 11... Bxg5 {[%clk 0:01:45.1]} 12. Bxg7 {[%clk
0:02:11.8]} 12... Rg8 {[%clk 0:01:32.2]} 13. Qh7 {[%clk 0:02:04.6]} 13... Kd7
{[%clk 0:01:30.4]} 14. Rxg5 {[%clk 0:01:49.9]} 14... Qxg5 {[%clk 0:01:29.6]} 15.
Qxg8 {[%clk 0:01:47.1]} 15... Ne5 {[%clk 0:01:27]} 16. f4 {[%clk 0:01:20.5]}
16... Nf3+ {[%clk 0:01:23.7]} 17. Kd1 {[%clk 0:01:11.8]} 17... Qg1 {[%clk
0:01:18.8]} 18. Qxf7+ {[%clk 0:00:42.4]} 18... Kc6 {[%clk 0:01:17.5]} 19. Qe8+
{[%clk 0:00:39]} 19... Bd7 {[%clk 0:01:17.5]} 20. Qxa8 {[%clk 0:00:38.8]} 20...
Qxf1+ {[%clk 0:01:14.8]} 21. Kc2 {[%clk 0:00:38.4]} 21... Qxc4+ {[%clk
0:01:07.4]} 22. Nc3 {[%clk 0:00:32.6]} 22... e5 {[%clk 0:01:07.3]} 23. e4 {[%clk
0:00:17.5]} 23... Nd4+ {[%clk 0:01:03.2]} 24. Kc1 {[%clk 0:00:13.1]} 24... Qd3
{[%clk 0:00:59.1]} 25. Kd1 {[%clk 0:00:07.1]} 25... Qf1# {[%clk 0:00:58.5]} 0-1

[Event "Early-Titled-Tuesday-Blitz-October-03-2023"]
[Site "Chess.com"]
[Date "2023.10.03"]
[Round "5"]
[White "GMJustin"]
[Black "NovikovaGalina"]
[Result "0-1"]
[WhiteElo "2199"]
[BlackElo "2404"]
[TimeControl "180+1"]
[EndTime "8:54:49 PDT"]
[Termination "NovikovaGalina won on time"]

1. d4 {[%clk 0:02:50.4]} 1... e5 {[%clk 0:02:59.8]} 2. dxe5 {[%clk 0:02:48.6]}
2... d6 {[%clk 0:03:00.3]} 3. Nf3 {[%clk 0:02:41.5]} 3... Nc6 {[%clk 0:03:00.4]}
4. exd6 {[%clk 0:02:37.9]} 4... Bxd6 {[%clk 0:03:01.3]} 5. g3 {[%clk 0:02:36.5]}
5... Bg4 {[%clk 0:03:01.8]} 6. Bg2 {[%clk 0:02:34.3]} 6... Qe7 {[%clk
0:03:02.3]} 7. Bg5 {[%clk 0:02:07.4]} 7... f6 {[%clk 0:02:59]} 8. Be3 {[%clk
0:02:02.4]} 8... O-O-O {[%clk 0:02:58.9]} 9. Qc1 {[%clk 0:01:49.3]} 9... h5
{[%clk 0:02:46.2]} 10. Nc3 {[%clk 0:01:38.4]} 10... Nh6 {[%clk 0:02:44.3]} 11.
Nh4 {[%clk 0:01:22.4]} 11... g5 {[%clk 0:02:24.9]} 12. Ng6 {[%clk 0:01:16.4]}
12... Qd7 {[%clk 0:02:21.5]} 13. Nxh8 {[%clk 0:01:14.7]} 13... Rxh8 {[%clk
0:02:22.4]} 14. Nd5 {[%clk 0:01:10.7]} 14... Be6 {[%clk 0:02:15.8]} 15. Nxf6
{[%clk 0:01:06.2]} 15... Qf7 {[%clk 0:02:16.4]} 16. Bxg5 {[%clk 0:01:04.5]}
16... Ng4 {[%clk 0:02:16.5]} 17. Nxg4 {[%clk 0:00:59.2]} 17... hxg4 {[%clk
0:02:14.3]} 18. Bf4 {[%clk 0:00:57.9]} 18... Bd5 {[%clk 0:02:13.4]} 19. Bxd5
{[%clk 0:00:20.2]} 19... Qxd5 {[%clk 0:02:12.8]} 20. O-O {[%clk 0:00:19.5]}
20... Qh5 {[%clk 0:02:11.1]} 21. h4 {[%clk 0:00:19.1]} 21... gxh3 {[%clk
0:02:12]} 22. Bxd6 {[%clk 0:00:16.9]} 22... h2+ {[%clk 0:02:12.7]} 23. Kh1
{[%clk 0:00:16.2]} 23... Qd5+ {[%clk 0:02:13.3]} 24. f3 {[%clk 0:00:15.6]} 24...
Qxd6 {[%clk 0:02:13.9]} 25. Qf4 {[%clk 0:00:14.5]} 25... Qe7 {[%clk 0:02:09.1]}
26. e4 {[%clk 0:00:13]} 26... Kb8 {[%clk 0:02:06.4]} 27. Rad1 {[%clk 0:00:12.7]}
27... a6 {[%clk 0:02:07.1]} 28. Rd2 {[%clk 0:00:11.1]} 28... Rf8 {[%clk
0:02:05.9]} 29. Qe3 {[%clk 0:00:07.7]} 29... Ne5 {[%clk 0:02:05.9]} 30. Rg2
{[%clk 0:00:03]} 30... Qb4 {[%clk 0:01:59.5]} 31. c3 {[%clk 0:00:01.9]} 31...
Qb5 {[%clk 0:02:00.2]} 32. Qe2 {[%clk 0:00:01.8]} 32... Qd7 {[%clk 0:01:55.7]}
33. Rxh2 {[%clk 0:00:02]} 33... Rg8 {[%clk 0:01:56.4]} 34. Rg2 {[%clk
0:00:01.8]} 34... Qh7+ {[%clk 0:01:55.7]} 35. Kg1 {[%clk 0:00:01.9]} 35... Rh8
{[%clk 0:01:49.3]} 36. Rh2 {[%clk 0:00:01.8]} 36... Qg8 {[%clk 0:01:48.6]} 37.
Rxh8 {[%clk 0:00:02.3]} 37... Qxh8 {[%clk 0:01:49.5]} 38. g4 {[%clk 0:00:02.5]}
38... Ng6 {[%clk 0:01:49.6]} 39. Qf2 {[%clk 0:00:02.4]} 39... Nf4 {[%clk
0:01:49.5]} 40. Qh2 {[%clk 0:00:02.5]} 40... Qf6 {[%clk 0:01:45.7]} 41. Rf2
{[%clk 0:00:02.4]} 41... Nd3 {[%clk 0:01:44.7]} 42. Rd2 {[%clk 0:00:02]} 42...
Ne5 {[%clk 0:01:45.4]} 43. Qg3 {[%clk 0:00:01.9]} 43... Nxf3+ {[%clk 0:01:45.6]}
44. Kg2 {[%clk 0:00:02]} 44... Nxd2 {[%clk 0:01:46.5]} 45. g5 {[%clk 0:00:02]}
45... Qf1+ {[%clk 0:01:44.7]} 46. Kh2 {[%clk 0:00:01.8]} 46... Nf3+ {[%clk
0:01:45]} 47. Qxf3 {[%clk 0:00:01.5]} 47... Qxf3 {[%clk 0:01:45.9]} 0-1

[Event "Early-Titled-Tuesday-Blitz-October-03-2023"]
[Site "Chess.com"]
[Date "2023.10.03"]
[Round "5"]
[White "PeshkaCh"]
[Black "RichardLeyvaP"]
[Result "1-0"]
[WhiteElo "2791"]
[BlackElo "2587"]
[TimeControl "180+1"]
[EndTime "8:54:53 PDT"]
[Termination "PeshkaCh won by resignation"]

1. Nf3 {[%clk 0:03:00.9]} 1... Nf6 {[%clk 0:02:57.9]} 2. d4 {[%clk 0:03:00.1]}
2... g6 {[%clk 0:02:54.9]} 3. g3 {[%clk 0:02:59.6]} 3... Bg7 {[%clk 0:02:53.1]}
4. Bg2 {[%clk 0:03:00.3]} 4... O-O {[%clk 0:02:53.3]} 5. O-O {[%clk 0:03:01.1]}
5... d6 {[%clk 0:02:53.2]} 6. c4 {[%clk 0:03:01.7]} 6... c6 {[%clk 0:02:53.8]}
7. Nc3 {[%clk 0:03:02.4]} 7... Qa5 {[%clk 0:02:53.9]} 8. Bg5 {[%clk 0:02:56.1]}
8... h6 {[%clk 0:02:51.8]} 9. Bxf6 {[%clk 0:02:55.1]} 9... Bxf6 {[%clk
0:02:51.7]} 10. Qd2 {[%clk 0:02:56]} 10... Bg7 {[%clk 0:02:50.3]} 11. Rac1
{[%clk 0:02:52.3]} 11... Nd7 {[%clk 0:02:40.7]} 12. Rfd1 {[%clk 0:02:50.8]}
12... a6 {[%clk 0:02:31.1]} 13. e4 {[%clk 0:02:46.9]} 13... Nf6 {[%clk
0:02:13.7]} 14. e5 {[%clk 0:02:36.3]} 14... dxe5 {[%clk 0:02:13]} 15. Nxe5
{[%clk 0:02:36.9]} 15... Rd8 {[%clk 0:02:07.6]} 16. c5 {[%clk 0:02:28.7]} 16...
Qc7 {[%clk 0:02:05.5]} 17. Qf4 {[%clk 0:02:24.6]} 17... Qb8 {[%clk 0:01:56.2]}
18. h4 {[%clk 0:01:36]} 18... Be6 {[%clk 0:01:52.2]} 19. a3 {[%clk 0:01:24.6]}
19... Rf8 {[%clk 0:01:38.1]} 20. Re1 {[%clk 0:01:21.9]} 20... Qc8 {[%clk
0:01:36]} 21. Na4 {[%clk 0:01:20.9]} 21... Nd5 {[%clk 0:01:26.5]} 22. Bxd5
{[%clk 0:00:57.3]} 22... Bxd5 {[%clk 0:01:27.4]} 23. Nb6 {[%clk 0:00:57.9]}
23... Qd8 {[%clk 0:01:27.6]} 24. Nxa8 {[%clk 0:00:53.9]} 24... Qxa8 {[%clk
0:01:24.8]} 25. Nd7 {[%clk 0:00:53.5]} 25... Re8 {[%clk 0:01:23]} 26. Nb6 {[%clk
0:00:51.1]} 26... Qd8 {[%clk 0:01:23.1]} 27. Nxd5 {[%clk 0:00:49.9]} 27... Qxd5
{[%clk 0:01:23.4]} 28. Rcd1 {[%clk 0:00:50.4]} 28... g5 {[%clk 0:01:06.8]} 29.
hxg5 {[%clk 0:00:49.8]} 29... hxg5 {[%clk 0:01:07.7]} 30. Qc7 {[%clk 0:00:49.4]}
30... Bxd4 {[%clk 0:01:06.9]} 31. Qxb7 {[%clk 0:00:37.8]} 31... Qxc5 {[%clk
0:01:03]} 32. Rf1 {[%clk 0:00:33.9]} 32... e5 {[%clk 0:00:57.3]} 33. Rc1 {[%clk
0:00:29.8]} 33... Qb5 {[%clk 0:00:50.8]} 34. Qxc6 {[%clk 0:00:27.2]} 34... Qxb2
{[%clk 0:00:45.8]} 35. Qxe8+ {[%clk 0:00:27.2]} 1-0

[Event "Early-Titled-Tuesday-Blitz-October-03-2023"]
[Site "Chess.com"]
[Date "2023.10.03"]
[Round "5"]
[White "taleslascando"]
[Black "ajedrezhoy"]
[Result "0-1"]
[WhiteElo "2020"]
[BlackElo "2365"]
[TimeControl "180+1"]
[EndTime "8:55:03 PDT"]
[Termination "ajedrezhoy won on time"]

1. e4 {[%clk 0:03:00.9]} 1... Nf6 {[%clk 0:02:58.7]} 2. e5 {[%clk 0:03:00.4]}
2... Nd5 {[%clk 0:02:58.1]} 3. Nf3 {[%clk 0:02:59.7]} 3... d6 {[%clk 0:02:57.9]}
4. exd6 {[%clk 0:02:59.3]} 4... cxd6 {[%clk 0:02:57.6]} 5. d4 {[%clk 0:03:00]}
5... g6 {[%clk 0:02:57.2]} 6. c4 {[%clk 0:03:00.1]} 6... Nb6 {[%clk 0:02:56.8]}
7. b3 {[%clk 0:03:00.4]} 7... Bg7 {[%clk 0:02:56.4]} 8. Bb2 {[%clk 0:02:56.4]}
8... O-O {[%clk 0:02:56.3]} 9. Nbd2 {[%clk 0:02:55.2]} 9... Nc6 {[%clk
0:02:54.9]} 10. Be2 {[%clk 0:02:49.4]} 10... Bf5 {[%clk 0:02:50.6]} 11. a3
{[%clk 0:02:42.9]} 11... d5 {[%clk 0:02:50.1]} 12. O-O {[%clk 0:02:39.3]} 12...
dxc4 {[%clk 0:02:41.2]} 13. bxc4 {[%clk 0:02:35.2]} 13... Nxd4 {[%clk
0:02:39.1]} 14. Nxd4 {[%clk 0:02:21.7]} 14... Bxd4 {[%clk 0:02:38]} 15. Bxd4
{[%clk 0:02:17.4]} 15... Qxd4 {[%clk 0:02:36.8]} 16. Nf3 {[%clk 0:02:15.5]}
16... Qxd1 {[%clk 0:02:36.3]} 17. Rfxd1 {[%clk 0:02:15.8]} 17... Rac8 {[%clk
0:02:35.3]} 18. Rac1 {[%clk 0:02:15]} 18... Rc5 {[%clk 0:02:12.6]} 19. Nd4
{[%clk 0:02:13.2]} 19... Rfc8 {[%clk 0:01:56.6]} 20. Nb3 {[%clk 0:01:58.2]}
20... R5c7 {[%clk 0:01:54.7]} 21. c5 {[%clk 0:01:57.4]} 21... Na4 {[%clk
0:01:53.4]} 22. Bf3 {[%clk 0:01:48.3]} 22... Be6 {[%clk 0:01:46.5]} 23. Nd4
{[%clk 0:01:26.3]} 23... Nxc5 {[%clk 0:01:45.6]} 24. Nb5 {[%clk 0:01:14.7]}
24... Rd7 {[%clk 0:01:36.8]} 25. Nxa7 {[%clk 0:00:54.6]} 25... Rxd1+ {[%clk
0:01:35.3]} 26. Rxd1 {[%clk 0:00:54.4]} 26... Ra8 {[%clk 0:01:34.9]} 27. Nb5
{[%clk 0:00:51.8]} 27... Ra5 {[%clk 0:01:32.6]} 28. Nd4 {[%clk 0:00:45.1]} 28...
Rxa3 {[%clk 0:01:29.8]} 29. Nxe6 {[%clk 0:00:33.1]} 29... fxe6 {[%clk
0:01:29.6]} 30. Rb1 {[%clk 0:00:20.6]} 30... Ra6 {[%clk 0:01:15.1]} 31. g3
{[%clk 0:00:17.2]} 31... b6 {[%clk 0:01:15.1]} 32. Kf1 {[%clk 0:00:14]} 32...
Kf7 {[%clk 0:01:13.6]} 33. Be2 {[%clk 0:00:14]} 33... Ra2 {[%clk 0:01:08.2]} 34.
Rxb6 {[%clk 0:00:04.2]} 34... Ne4 {[%clk 0:01:07.6]} 35. Rxe6 {[%clk 0:00:01.6]}
35... Ra1+ {[%clk 0:01:06]} 0-1

[Event "Early-Titled-Tuesday-Blitz-October-03-2023"]
[Site "Chess.com"]
[Date "2023.10.03"]
[Round "5"]
[White "ExchangeAB"]
[Black "HanSchut"]
[Result "1-0"]
[WhiteElo "2495"]
[BlackElo "2318"]
[TimeControl "180+1"]
[EndTime "8:55:04 PDT"]
[Termination "ExchangeAB won on time"]

1. d4 {[%clk 0:03:00.9]} 1... Nf6 {[%clk 0:02:57.4]} 2. Nc3 {[%clk 0:02:58.2]}
2... d5 {[%clk 0:02:56.2]} 3. Bf4 {[%clk 0:02:58.8]} 3... e6 {[%clk 0:02:56.2]}
4. e3 {[%clk 0:02:59.3]} 4... Bd6 {[%clk 0:02:53.5]} 5. Nf3 {[%clk 0:02:59.7]}
5... a6 {[%clk 0:02:50.1]} 6. Ne5 {[%clk 0:02:55.8]} 6... Nbd7 {[%clk
0:02:43.1]} 7. Nxd7 {[%clk 0:02:47.4]} 7... Qxd7 {[%clk 0:02:40]} 8. Bd3 {[%clk
0:02:43.6]} 8... Bxf4 {[%clk 0:02:27.1]} 9. exf4 {[%clk 0:02:44.5]} 9... c5
{[%clk 0:02:27.2]} 10. dxc5 {[%clk 0:02:44]} 10... Qc7 {[%clk 0:02:21.5]} 11.
Qd2 {[%clk 0:02:43.3]} 11... Qxc5 {[%clk 0:02:20.5]} 12. O-O {[%clk 0:02:41.3]}
12... b5 {[%clk 0:02:17]} 13. Ne2 {[%clk 0:02:34.6]} 13... Bb7 {[%clk
0:02:11.8]} 14. c3 {[%clk 0:02:31.2]} 14... O-O {[%clk 0:01:59.6]} 15. a3 {[%clk
0:02:29.4]} 15... Qc7 {[%clk 0:01:27.3]} 16. Nd4 {[%clk 0:02:28.7]} 16... Nh5
{[%clk 0:01:22.8]} 17. g3 {[%clk 0:02:28.5]} 17... g6 {[%clk 0:01:00.4]} 18. Qe2
{[%clk 0:02:27.5]} 18... Ng7 {[%clk 0:01:00]} 19. Rfe1 {[%clk 0:02:26.8]} 19...
Rfe8 {[%clk 0:00:53.3]} 20. Qe5 {[%clk 0:02:26.3]} 20... Qxe5 {[%clk 0:00:48.3]}
21. Rxe5 {[%clk 0:02:27.2]} 21... Reb8 {[%clk 0:00:43.8]} 22. Rae1 {[%clk
0:02:27]} 22... Bc8 {[%clk 0:00:43.4]} 23. g4 {[%clk 0:02:25.5]} 23... Bd7
{[%clk 0:00:43.4]} 24. f5 {[%clk 0:02:18.3]} 24... gxf5 {[%clk 0:00:43]} 25.
gxf5 {[%clk 0:02:18.5]} 25... Nxf5 {[%clk 0:00:33.2]} 26. Bxf5 {[%clk 0:02:17]}
26... exf5 {[%clk 0:00:31.5]} 27. Rxd5 {[%clk 0:02:15.3]} 27... Rd8 {[%clk
0:00:23.9]} 28. Re7 {[%clk 0:01:55.6]} 28... Be6 {[%clk 0:00:17.9]} 29. Rxd8+
{[%clk 0:01:50.6]} 29... Rxd8 {[%clk 0:00:17.3]} 30. Nxe6 {[%clk 0:01:51.2]}
30... fxe6 {[%clk 0:00:17.2]} 31. Rxe6 {[%clk 0:01:52.1]} 31... Rd2 {[%clk
0:00:13.9]} 32. b4 {[%clk 0:01:50.1]} 32... Rd3 {[%clk 0:00:11.8]} 33. Rxa6
{[%clk 0:01:49.9]} 33... Rxc3 {[%clk 0:00:12.2]} 34. Ra5 {[%clk 0:01:48.5]}
34... Kg7 {[%clk 0:00:11.2]} 35. Rxb5 {[%clk 0:01:47.9]} 35... Rxa3 {[%clk
0:00:11.6]} 36. Rxf5 {[%clk 0:01:48.3]} 36... Kg6 {[%clk 0:00:12.5]} 37. Rb5
{[%clk 0:01:48.1]} 37... Rb3 {[%clk 0:00:12.6]} 38. Kg2 {[%clk 0:01:48.1]} 38...
h5 {[%clk 0:00:12.4]} 39. h4 {[%clk 0:01:45.9]} 39... Rb2 {[%clk 0:00:10.7]} 40.
Kg3 {[%clk 0:01:45.6]} 40... Rb3+ {[%clk 0:00:10.8]} 41. f3 {[%clk 0:01:46]}
41... Rb1 {[%clk 0:00:10.8]} 42. Kf4 {[%clk 0:01:45.1]} 42... Rh1 {[%clk
0:00:08.1]} 43. Rb6+ {[%clk 0:01:44.9]} 43... Kf7 {[%clk 0:00:05.9]} 44. Kg5
{[%clk 0:01:45.3]} 44... Rf1 {[%clk 0:00:06.1]} 45. f4 {[%clk 0:01:44.8]} 45...
Rg1+ {[%clk 0:00:03.5]} 46. Kxh5 {[%clk 0:01:44.8]} 46... Kg7 {[%clk 0:00:04.4]}
47. f5 {[%clk 0:01:44.2]} 47... Kf7 {[%clk 0:00:04.4]} 48. b5 {[%clk 0:01:42.3]}
48... Rg2 {[%clk 0:00:03.7]} 49. Rc6 {[%clk 0:01:30.4]} 1-0

[Event "Early-Titled-Tuesday-Blitz-October-03-2023"]
[Site "Chess.com"]
[Date "2023.10.03"]
[Round "5"]
[White "goldihouse"]
[Black "ChessicallyInclined"]
[Result "0-1"]
[WhiteElo "2605"]
[BlackElo "2800"]
[TimeControl "180+1"]
[EndTime "8:55:06 PDT"]
[Termination "ChessicallyInclined won on time"]

1. c4 {[%clk 0:03:00]} 1... e5 {[%clk 0:02:58.1]} 2. g3 {[%clk 0:03:00.9]} 2...
c6 {[%clk 0:02:58]} 3. d4 {[%clk 0:03:00.3]} 3... e4 {[%clk 0:02:57.9]} 4. d5
{[%clk 0:03:00.3]} 4... Nf6 {[%clk 0:02:51.8]} 5. Bg2 {[%clk 0:02:59]} 5... Bb4+
{[%clk 0:02:51.5]} 6. Bd2 {[%clk 0:02:58.8]} 6... Qe7 {[%clk 0:02:50.9]} 7. Nc3
{[%clk 0:02:58]} 7... cxd5 {[%clk 0:02:46.5]} 8. Nxd5 {[%clk 0:02:38.6]} 8...
Nxd5 {[%clk 0:02:45.1]} 9. cxd5 {[%clk 0:02:39.5]} 9... e3 {[%clk 0:02:23.4]}
10. fxe3 {[%clk 0:02:36.9]} 10... O-O {[%clk 0:02:19.9]} 11. Nf3 {[%clk
0:02:21.1]} 11... Bxd2+ {[%clk 0:02:14]} 12. Qxd2 {[%clk 0:02:20.9]} 12... d6
{[%clk 0:02:14.9]} 13. Nd4 {[%clk 0:02:05.3]} 13... Na6 {[%clk 0:02:10.2]} 14.
b4 {[%clk 0:01:56]} 14... Bd7 {[%clk 0:02:03.5]} 15. O-O {[%clk 0:01:46]} 15...
Rfe8 {[%clk 0:01:54.4]} 16. e4 {[%clk 0:01:35.2]} 16... g6 {[%clk 0:01:47.3]}
17. Rac1 {[%clk 0:01:25.8]} 17... Rac8 {[%clk 0:01:44.9]} 18. a3 {[%clk
0:01:21.8]} 18... Bg4 {[%clk 0:01:22.2]} 19. Qf4 {[%clk 0:01:02.3]} 19... h5
{[%clk 0:01:15.5]} 20. h3 {[%clk 0:00:45.2]} 20... Bd7 {[%clk 0:01:14]} 21. Kh2
{[%clk 0:00:33.7]} 21... Ba4 {[%clk 0:01:08.7]} 22. Qf3 {[%clk 0:00:19.8]} 22...
Nb8 {[%clk 0:01:02.9]} 23. h4 {[%clk 0:00:07.7]} 23... Nd7 {[%clk 0:00:59.7]}
24. Bh3 {[%clk 0:00:06.5]} 24... Ne5 {[%clk 0:00:53.7]} 25. Qf4 {[%clk
0:00:06.5]} 25... Rc4 {[%clk 0:00:45.6]} 26. Rxc4 {[%clk 0:00:05.6]} 26... Nxc4
{[%clk 0:00:45.7]} 27. Rc1 {[%clk 0:00:02.6]} 27... Ne5 {[%clk 0:00:38.9]} 0-1

[Event "Early-Titled-Tuesday-Blitz-October-03-2023"]
[Site "Chess.com"]
[Date "2023.10.03"]
[Round "5"]
[White "santosalberto1987"]
[Black "Zurability"]
[Result "1-0"]
[WhiteElo "2494"]
[BlackElo "2699"]
[TimeControl "180+1"]
[EndTime "8:55:09 PDT"]
[Termination "santosalberto1987 won on time"]

1. e4 {[%clk 0:03:00.9]} 1... c5 {[%clk 0:01:49.2]} 2. Nf3 {[%clk 0:03:00.5]}
2... d6 {[%clk 0:01:49.8]} 3. Bb5+ {[%clk 0:02:59.9]} 3... Nd7 {[%clk 0:01:49]}
4. d4 {[%clk 0:02:59.8]} 4... cxd4 {[%clk 0:01:46.3]} 5. Qxd4 {[%clk 0:03:00.3]}
5... a6 {[%clk 0:01:40.4]} 6. Bxd7+ {[%clk 0:03:00.4]} 6... Bxd7 {[%clk
0:01:41.3]} 7. Nc3 {[%clk 0:02:59.9]} 7... e5 {[%clk 0:01:41.4]} 8. Qd3 {[%clk
0:03:00.2]} 8... h6 {[%clk 0:01:42]} 9. Nd2 {[%clk 0:03:00.3]} 9... Be6 {[%clk
0:01:37.8]} 10. Nc4 {[%clk 0:02:59.8]} 10... Nf6 {[%clk 0:01:36.7]} 11. Ne3
{[%clk 0:02:58.1]} 11... Be7 {[%clk 0:01:34.3]} 12. O-O {[%clk 0:02:56.8]} 12...
O-O {[%clk 0:01:34.2]} 13. Ncd5 {[%clk 0:02:54.4]} 13... Nxd5 {[%clk 0:01:29.5]}
14. Nxd5 {[%clk 0:02:53.6]} 14... f5 {[%clk 0:01:30]} 15. f4 {[%clk 0:02:04.5]}
15... fxe4 {[%clk 0:01:23.8]} 16. Qxe4 {[%clk 0:02:04.4]} 16... Rc8 {[%clk
0:01:17.5]} 17. c3 {[%clk 0:01:56.1]} 17... Rc5 {[%clk 0:00:59.5]} 18. Nxe7+
{[%clk 0:01:49]} 18... Qxe7 {[%clk 0:01:00.4]} 19. Be3 {[%clk 0:01:49.4]} 19...
Rc4 {[%clk 0:00:58.5]} 20. Qd3 {[%clk 0:01:34.5]} 20... exf4 {[%clk 0:00:55.9]}
21. b3 {[%clk 0:01:27.3]} 21... b5 {[%clk 0:00:23]} 22. bxc4 {[%clk 0:00:52.7]}
22... Bxc4 {[%clk 0:00:23.9]} 23. Qd4 {[%clk 0:00:53.2]} 23... Bxf1 {[%clk
0:00:21.8]} 24. Bxf4 {[%clk 0:00:53.5]} 24... Bxg2 {[%clk 0:00:09.4]} 25. Kxg2
{[%clk 0:00:35]} 25... Qe2+ {[%clk 0:00:06.7]} 26. Kg1 {[%clk 0:00:34.6]} 1-0

[Event "Early-Titled-Tuesday-Blitz-October-03-2023"]
[Site "Chess.com"]
[Date "2023.10.03"]
[Round "5"]
[White "tolimachess"]
[Black "LeRoidesChampions"]
[Result "0-1"]
[WhiteElo "2426"]
[BlackElo "2617"]
[TimeControl "180+1"]
[EndTime "8:55:10 PDT"]
[Termination "LeRoidesChampions won by checkmate"]

1. Nc3 {[%clk 0:02:57.7]} 1... g6 {[%clk 0:02:52.1]} 2. e4 {[%clk 0:02:57.7]}
2... Bg7 {[%clk 0:02:51.9]} 3. g3 {[%clk 0:02:57.9]} 3... c5 {[%clk 0:02:51.2]}
4. Bg2 {[%clk 0:02:58.4]} 4... Nc6 {[%clk 0:02:51.7]} 5. d3 {[%clk 0:02:58.7]}
5... d6 {[%clk 0:02:52]} 6. Be3 {[%clk 0:02:58.8]} 6... a6 {[%clk 0:02:51.9]} 7.
a4 {[%clk 0:02:58]} 7... Rb8 {[%clk 0:02:52]} 8. h4 {[%clk 0:02:54.8]} 8... h5
{[%clk 0:02:50.6]} 9. Nh3 {[%clk 0:02:54.1]} 9... b5 {[%clk 0:02:49.8]} 10. axb5
{[%clk 0:02:55]} 10... axb5 {[%clk 0:02:49.7]} 11. Qd2 {[%clk 0:02:54.6]} 11...
b4 {[%clk 0:02:49.7]} 12. Nd1 {[%clk 0:02:54.8]} 12... Nf6 {[%clk 0:02:49]} 13.
O-O {[%clk 0:02:53.8]} 13... Nd4 {[%clk 0:02:45.1]} 14. f3 {[%clk 0:02:37.7]}
14... Be6 {[%clk 0:02:36.9]} 15. Kh2 {[%clk 0:02:35.6]} 15... Qc8 {[%clk
0:02:31.5]} 16. Ng5 {[%clk 0:02:30]} 16... Bd7 {[%clk 0:02:30.8]} 17. Nf2 {[%clk
0:02:24.2]} 17... e5 {[%clk 0:02:20.4]} 18. Ra7 {[%clk 0:02:22.7]} 18... Nc6
{[%clk 0:02:09.6]} 19. Raa1 {[%clk 0:02:09.1]} 19... O-O {[%clk 0:02:06]} 20.
Bh3 {[%clk 0:02:01.2]} 20... Bxh3 {[%clk 0:01:59.2]} 21. Ngxh3 {[%clk
0:02:02.1]} 21... Nd7 {[%clk 0:01:57.2]} 22. Bh6 {[%clk 0:02:01.5]} 22... Nd4
{[%clk 0:01:55.6]} 23. Kg2 {[%clk 0:02:01.1]} 23... Bxh6 {[%clk 0:01:44.7]} 24.
Qxh6 {[%clk 0:02:02]} 24... Nxc2 {[%clk 0:01:45]} 25. Ng5 {[%clk 0:02:00.2]}
25... Nf6 {[%clk 0:01:43.7]} 26. Ra7 {[%clk 0:01:54.2]} 26... Ne3+ {[%clk
0:01:41.4]} 27. Kg1 {[%clk 0:01:43.4]} 27... Nxf1 {[%clk 0:01:41.2]} 28. Rxf7
{[%clk 0:01:40.4]} 28... Rxf7 {[%clk 0:01:39.5]} 29. Qxg6+ {[%clk 0:01:40.5]}
29... Rg7 {[%clk 0:01:39.6]} 30. Qxf6 {[%clk 0:01:39.5]} 30... Nxg3 {[%clk
0:01:39.2]} 31. Qxd6 {[%clk 0:01:27.9]} 31... Qe8 {[%clk 0:01:32.8]} 32. Nfh3
{[%clk 0:01:21.4]} 32... Rd8 {[%clk 0:01:30.2]} 33. Qxc5 {[%clk 0:01:21.6]}
33... Ne2+ {[%clk 0:01:26.9]} 34. Kf2 {[%clk 0:01:19.6]} 34... Nd4 {[%clk
0:01:20.6]} 35. Qc4+ {[%clk 0:01:19]} 35... Kh8 {[%clk 0:01:19.8]} 36. f4 {[%clk
0:01:02.3]} 36... Rc8 {[%clk 0:01:19.4]} 37. Qa6 {[%clk 0:00:56.9]} 37... Rc2+
{[%clk 0:01:19.7]} 38. Kf1 {[%clk 0:00:36]} 38... Qc8 {[%clk 0:01:20.6]} 39.
Qh6+ {[%clk 0:00:20.4]} 39... Kg8 {[%clk 0:01:19]} 40. Nf2 {[%clk 0:00:20.8]}
40... Rxf2+ {[%clk 0:01:14.4]} 41. Kxf2 {[%clk 0:00:21.7]} 41... Qc2+ {[%clk
0:01:13.3]} 42. Kg3 {[%clk 0:00:20.5]} 42... Ne2+ {[%clk 0:01:11.3]} 43. Kf3
{[%clk 0:00:15.7]} 43... Nxf4 {[%clk 0:01:11.4]} 44. Qd6 {[%clk 0:00:13.1]}
44... Qe2+ {[%clk 0:01:11]} 45. Kg3 {[%clk 0:00:13.4]} 45... Rxg5+ {[%clk
0:01:10.9]} 46. hxg5 {[%clk 0:00:13.4]} 46... Qg2+ {[%clk 0:01:11.8]} 47. Kh4
{[%clk 0:00:13.8]} 47... Qg4# {[%clk 0:01:12.7]} 0-1